fUSD/lending_fUSD_20250108
["ID","MTS","AMOUNT","RATE_DAILY","PERIOD"]
[348167204,1736362239819,-500.27013525,0.00010307,2]
[348167205,1736362239828,-500.98348293,0.00010307,2]
[348167207,1736362239838,-500.58289113,0.00010307,2]
[348167208,1736362239848,-501.55184241,0.00010307,2]
[348167210,1736362239857,-522.92083172,0.00010307,2]
[348167212,1736362239866,-501.18855224,0.00010307,2]
[348167214,1736362239875,-179.63464525,0.00010307,2]
[348167216,1736362239884,-502.1104876,0.00010307,2]
[348167218,1736362239894,-502.1991438,0.00010307,2]
[348167220,1736362239903,-502.12897634,0.00010307,2]
[348167222,1736362239913,-501.64386903,0.00010307,2]
[348167224,1736362239925,-500.23523175,0.00010307,2]
[348167226,1736362239934,-518.26542156,0.00010307,2]
[348167228,1736362239943,-500.81883492,0.00010307,2]
[348167230,1736362239952,-500.48975667,0.00010307,2]
[348167232,1736362239963,-500.45967866,0.00010307,2]
[348167234,1736362239972,-501.04386672,0.00010307,2]
[348167236,1736362239980,-500.0,0.00010307,2]
[348167238,1736362239989,-252.71006306,0.00010307,2]
[348167240,1736362240000,-1000.0,0.00010307,2]
[348167242,1736362240009,-500.88864951,0.00010307,2]
[348167244,1736362240018,-500.75073556,0.00010307,2]
[348167246,1736362240029,-501.92496728,0.00010307,2]
[348167248,1736362240038,-500.0,0.00010307,2]
[348167249,1736362240047,-500.0,0.00010307,2]
[348167252,1736362240057,-500.0,0.00010307,2]
[348167254,1736362240066,-500.0,0.00010308,2]
[348167255,1736362240075,-500.0,0.00010308,2]
[348167257,1736362240084,-1871.82,0.00010308,2]
[348167259,1736362240094,-500.0,0.00010308,2]
[348167261,1736362240103,-651.25,0.00010308,2]
[348167263,1736362240112,-515.76,0.00010308,2]
[348167265,1736362240121,-507.55,0.00010308,2]
[348167267,1736362240130,-500.0,0.00010308,2]
[348167269,1736362240140,-585.95589756,0.00010308,2]
[348167271,1736362240149,-500.0,0.00010308,2]
[348167273,1736362240158,-500.0,0.00010308,2]
[348167275,1736362240168,-150.12,0.00010384,2]
[348167277,1736362240178,-500.0,0.00010418,2]
[348167279,1736362240187,-500.0,0.00010418,2]
[348167281,1736362240197,-500.0,0.00010418,2]
[348167283,1736362240206,-2544.2,0.00010418,2]
[348167285,1736362240215,-1042.29,0.00010418,2]
[348167287,1736362240224,-629.99,0.00010418,2]
[348167289,1736362240233,-500.0,0.00010418,2]
[348167291,1736362240242,-500.0,0.00010418,2]
[348167293,1736362240252,-926.3,0.00010418,2]
[348167295,1736362240262,-1464.56,0.00010418,2]
[348167297,1736362240272,-1397.23,0.00010418,2]
[348167299,1736362240281,-2215.57,0.00010418,2]
[348167301,1736362240291,-1134.57,0.00010418,2]
[348167303,1736362240300,-3254.43,0.00010418,2]
[348167305,1736362240309,-3864.53,0.00010418,2]
[348167307,1736362240319,-500.0,0.00010446,2]
[348167309,1736362240329,-500.0,0.00010446,2]
[348167311,1736362240338,-500.0,0.00010446,2]
[348167313,1736362240347,-500.0,0.00010446,2]
[348167315,1736362240355,-500.0,0.00010446,2]
[348167317,1736362240366,-500.0,0.00010446,2]
[348167319,1736362240376,-577.51,0.00010446,2]
[348167321,1736362240387,-500.0,0.00010446,2]
[348167323,1736362240396,-500.0,0.00010446,2]
[348167325,1736362240405,-587.5,0.00010446,2]
[348167327,1736362240415,-500.0,0.00010446,2]
[348167329,1736362240425,-500.0,0.00010446,2]
[348167331,1736362240434,-500.0,0.00010446,2]
[348167333,1736362240444,-500.0,0.00010446,2]
[348167335,1736362240453,-500.0,0.00010446,2]
[348167337,1736362240463,-500.0,0.00010446,2]
[348167357,1736362240641,-500.0,0.00010446,2]
[348167359,1736362240651,-658.68,0.00010446,2]
[348167361,1736362240661,-636.51,0.00010446,2]
[348167363,1736362240670,-500.0,0.00010446,2]
[348167365,1736362240679,-500.0,0.00010446,2]
[348167367,1736362240688,-500.0,0.00010446,2]
[348167369,1736362240698,-500.0,0.00010446,2]
[348167371,1736362240708,-500.0,0.00010446,2]
[348167373,1736362240718,-500.0,0.00010446,2]
[348167375,1736362240729,-500.0,0.00010446,2]
[348167377,1736362240738,-500.0,0.00010446,2]
[348167379,1736362240747,-500.0,0.00010446,2]
[348167381,1736362240758,-510.27692963,0.00010446,2]
[348167383,1736362240767,-801.18,0.00010446,2]
[348167385,1736362240782,-601.54,0.00010446,2]
[348167387,1736362240791,-500.0,0.00010446,2]
[348167389,1736362240801,-701.9,0.00010446,2]
[348167391,1736362240811,-500.0,0.00010446,2]
[348167393,1736362240820,-500.0,0.00010446,2]
[348167395,1736362240830,-500.0,0.00010446,2]
[348167397,1736362240839,-500.0,0.00010446,2]
[348167399,1736362240848,-609.7,0.00010446,2]
[348167401,1736362240857,-500.0,0.00010446,2]
[348167403,1736362240867,-500.0,0.00010446,2]
[348167405,1736362240876,-693.7,0.00010446,2]
[348167407,1736362240886,-500.0,0.00010446,2]
[348167409,1736362240895,-500.0,0.00010446,2]
[348167411,1736362240905,-500.0,0.00010446,2]
[348167413,1736362240915,-718.53,0.00010446,2]
[348167415,1736362240927,-500.0,0.00010446,2]
[348167417,1736362240936,-157.96,0.00010446,2]
[348167419,1736362240945,-500.0,0.00010446,2]
[348167421,1736362240955,-500.0,0.00010446,2]
[348167423,1736362240967,-784.05,0.00010446,2]
[348167425,1736362240976,-557.73,0.00010446,2]
[348167427,1736362240986,-500.0,0.00010446,2]
[348167429,1736362240996,-500.0,0.00010446,2]
[348167431,1736362241005,-500.0,0.00010446,2]
[348167433,1736362241015,-500.0,0.00010446,2]
[348167434,1736362241026,-500.0,0.00010446,2]
[348167436,1736362241036,-560.21,0.00010446,2]
[348167438,1736362241045,-500.0,0.00010446,2]
[348167440,1736362241055,-500.0,0.00010446,2]
[348167442,1736362241064,-500.0,0.00010446,2]
[348167444,1736362241073,-500.0,0.00010446,2]
[348167446,1736362241083,-500.0,0.00010446,2]
[348167448,1736362241092,-500.0,0.00010446,2]
[348167450,1736362241102,-500.0,0.00010446,2]
[348167452,1736362241111,-500.0,0.00010446,2]
[348167454,1736362241120,-500.0,0.00010446,2]
[348167456,1736362241129,-642.81,0.00010446,2]
[348167458,1736362241138,-500.0,0.00010446,2]
[348167460,1736362241148,-500.0,0.00010446,2]
[348167462,1736362241157,-443.31117043,0.00010446,2]
[348167464,1736362241167,-956.3,0.00010446,2]
[348167466,1736362241176,-500.0,0.00010446,2]
[348167468,1736362241185,-500.0,0.00010446,2]
[348167470,1736362241194,-500.0,0.00010446,2]
[348167472,1736362241204,-500.0,0.00010446,2]
[348167474,1736362241212,-500.0,0.00010446,2]
[348167476,1736362241222,-593.33,0.00010446,2]
[348167478,1736362241232,-500.0,0.00010446,2]
[348167480,1736362241241,-500.0,0.00010446,2]
[348167482,1736362241251,-500.0,0.00010446,2]
[348167484,1736362241261,-603.91,0.00010446,2]
[348167486,1736362241270,-500.0,0.00010446,2]
[348167488,1736362241280,-500.0,0.00010446,2]
[348167490,1736362241290,-500.0,0.00010446,2]
[348167492,1736362241299,-500.0,0.00010446,2]
[348167494,1736362241309,-1933.32,0.00010446,2]
[348167496,1736362241319,-500.0,0.00010446,2]
[348167498,1736362241329,-500.0,0.00010446,2]
[348167500,1736362241338,-500.0,0.00010446,2]
[348167502,1736362241347,-657.09,0.00010446,2]
[348167504,1736362241359,-576.46,0.00010446,2]
[348167506,1736362241369,-666.44,0.00010446,2]
[348167508,1736362241379,-554.61,0.00010446,2]
[348167510,1736362241389,-549.84,0.00010446,2]
[348167512,1736362241398,-500.0,0.00010446,2]
[348167514,1736362241407,-500.0,0.00010446,2]
[348167516,1736362241416,-2827.12,0.00010446,2]
[348167518,1736362241425,-2378.14,0.00010446,2]
[348167520,1736362241434,-1628.91,0.00010446,2]
[348167522,1736362241444,-590.58,0.00010446,2]
[348167524,1736362241454,-500.0,0.00010446,2]
[348167526,1736362241463,-2603.36,0.00010446,2]
[348167528,1736362241473,-1087.38,0.00010446,2]
[348167530,1736362241482,-500.0,0.00010446,2]
[348167532,1736362241492,-500.0,0.00010446,2]
[348167534,1736362241501,-500.0,0.00010446,2]
[348167536,1736362241511,-500.0,0.00010446,2]
[348167538,1736362241521,-500.0,0.00010446,2]
[348167540,1736362241530,-3082.77,0.00010446,2]
[348167542,1736362241539,-500.0,0.00010446,2]
[348167544,1736362241549,-573.65,0.00010446,2]
[348167546,1736362241558,-787.24,0.00010446,2]
[348167548,1736362241567,-500.0,0.00010446,2]
[348167550,1736362241577,-500.0,0.00010446,2]
[348167552,1736362241587,-500.0,0.00010446,2]
[348167554,1736362241598,-1301.03,0.00010446,2]
[348167556,1736362241608,-1988.72,0.00010446,2]
[348167558,1736362241617,-500.0,0.00010446,2]
[348167560,1736362241627,-500.0,0.00010446,2]
[348167562,1736362241636,-500.0,0.00010446,2]
[348167563,1736362241645,-500.0,0.00010446,2]
[348167566,1736362241655,-500.0,0.00010446,2]
[348167568,1736362241665,-500.0,0.00010446,2]
[348167569,1736362241675,-500.0,0.00010446,2]
[348167571,1736362241684,-1555.02,0.00010446,2]
[348167573,1736362241694,-500.0,0.00010446,2]
[348167575,1736362241703,-500.0,0.00010446,2]
[348167577,1736362241712,-1430.04,0.00010446,2]
[348167579,1736362241722,-500.0,0.00010446,2]
[348167581,1736362241731,-500.0,0.00010446,2]
[348167582,1736362241740,-981.86,0.00010446,2]
[348167583,1736362241748,-500.0,0.00010446,2]
[348167584,1736362241757,-1072.98,0.00010446,2]
[348167585,1736362241766,-692.07,0.00010446,2]
[348167586,1736362241776,-657.45,0.00010446,2]
[348167587,1736362241785,-948.96,0.00010446,2]
[348167588,1736362241794,-553.15,0.00010446,2]
[348167589,1736362241803,-500.0,0.00010446,2]
[348167590,1736362241812,-587.9461012,0.00010446,2]
[348167592,1736362241822,-2333.81,0.00010446,2]
[348167594,1736362241831,-500.0,0.00010446,2]
[348167596,1736362241840,-500.0,0.00010446,2]
[348167598,1736362241849,-762.73,0.00010446,2]
[348167600,1736362241858,-500.0,0.00010446,2]
[348167602,1736362241868,-500.0,0.00010446,2]
[348167604,1736362241876,-500.0,0.00010446,2]
[348167606,1736362241886,-688.07,0.00010446,2]
[348167608,1736362241896,-500.0,0.00010446,2]
[348167610,1736362241905,-500.0,0.00010446,2]
[348167612,1736362241914,-500.0,0.00010446,2]
[348167613,1736362241929,-500.0,0.00010446,2]
[348167615,1736362241938,-2329.942514,0.00010446,2]
[348167617,1736362241947,-500.0,0.00010446,2]
[348167619,1736362241957,-500.0,0.00010446,2]
[348167621,1736362241966,-1310.72,0.00010446,2]
[348167623,1736362241975,-233.84,0.00010446,2]
[348167625,1736362241986,-1030.81,0.00010446,2]
[348167628,1736362241995,-500.0,0.00010446,2]
[348167630,1736362242006,-2618.54,0.00010446,2]
[348167632,1736362242015,-500.0,0.00010446,2]
[348167634,1736362242026,-500.0,0.00010446,2]
[348167636,1736362242036,-500.0,0.00010446,2]
[348167638,1736362242045,-2072.313167,0.00010446,2]
[348167640,1736362242055,-1325.27,0.00010446,2]
[348167641,1736362242064,-500.0,0.00010446,2]
[348167643,1736362242074,-621.86,0.00010446,2]
[348167645,1736362242084,-500.0,0.00010446,2]
[348167647,1736362242093,-500.0,0.00010446,2]
[348167649,1736362242102,-500.0,0.00010446,2]
[348167651,1736362242111,-500.0,0.00010446,2]
[348167653,1736362242121,-500.0,0.00010446,2]
[348167655,1736362242131,-500.0,0.00010446,2]
[348167658,1736362242140,-3041.28,0.00010446,2]
[348167659,1736362242150,-500.0,0.00010446,2]
[348167661,1736362242160,-1664.79,0.00010446,2]
[348167663,1736362242169,-500.0,0.00010446,2]
[348167665,1736362242179,-500.0,0.00010446,2]
[348167667,1736362242189,-598.92464589,0.00010447,2]
[348167669,1736362242199,-500.0,0.00010447,2]
[348167671,1736362242208,-500.0,0.00010447,2]
[348167673,1736362242217,-500.0,0.00010447,2]
[348167675,1736362242228,-500.0,0.00010447,2]
[348167677,1736362242237,-500.0,0.00010447,2]
[348167679,1736362242247,-500.0,0.00010447,2]
[348167682,1736362242257,-500.0,0.00010447,2]
[348167684,1736362242267,-500.0,0.00010447,2]
[348167686,1736362242279,-500.0,0.00010447,2]
[348167688,1736362242288,-500.0,0.00010447,2]
[348167690,1736362242298,-500.0,0.00010447,2]
[348167692,1736362242308,-500.0,0.00010447,2]
[348167694,1736362242317,-500.0,0.00010447,2]
[348167696,1736362242326,-190.17,0.00010447,2]
[348167697,1736362242335,-500.0,0.00010447,2]
[348167699,1736362242344,-500.0,0.00010447,2]
[348167701,1736362242354,-500.0,0.00010447,2]
[348167703,1736362242365,-500.0,0.00010447,2]
[348167705,1736362242375,-500.0,0.00010447,2]
[348167707,1736362242384,-500.0,0.00010447,2]
[348167709,1736362242394,-500.0,0.00010447,2]
[348167711,1736362242403,-500.0,0.00010447,2]
[348167713,1736362242413,-500.0,0.00010447,2]
[348167715,1736362242423,-500.0,0.00010447,2]
[348167717,1736362242432,-608.48,0.00010447,2]
[348167719,1736362242442,-500.0,0.00010447,2]
[348167721,1736362242452,-500.0,0.00010447,2]
[348167723,1736362242461,-720.65,0.00010447,2]
[348167725,1736362242470,-500.0,0.00010447,2]
[348167727,1736362242480,-500.0,0.00010447,2]
[348167729,1736362242489,-500.0,0.00010447,2]
[348167731,1736362242499,-500.0,0.00010447,2]
[348167733,1736362242508,-500.0,0.00010447,2]
[348167735,1736362242517,-157.47,0.00010447,7]
[348167738,1736362242528,-500.0,0.00010447,2]
[348167740,1736362242537,-500.0,0.00010447,2]
[348167742,1736362242546,-500.0,0.00010447,2]
[348167744,1736362242555,-500.0,0.00010447,2]
[348167746,1736362242565,-500.0,0.00010447,2]
[348167748,1736362242575,-500.0,0.00010447,2]
[348167750,1736362242584,-500.0,0.00010447,2]
[348167752,1736362242593,-500.0,0.00010447,2]
[348167754,1736362242604,-500.0,0.00010447,2]
[348167756,1736362242613,-500.0,0.00010447,2]
[348167758,1736362242623,-500.0,0.00010447,2]
[348167760,1736362242632,-500.0,0.00010447,2]
[348167763,1736362242643,-500.0,0.00010447,2]
[348167766,1736362242652,-500.0,0.00010447,2]
[348167769,1736362242661,-500.0,0.00010447,2]
[348167772,1736362242671,-500.0,0.00010447,2]
[348167775,1736362242680,-500.0,0.00010447,2]
[348167778,1736362242689,-500.0,0.00010447,2]
[348167781,1736362242699,-500.0,0.00010447,2]
[348167784,1736362242708,-500.0,0.00010447,2]
[348167787,1736362242717,-500.0,0.00010447,2]
[348167790,1736362242726,-500.0,0.00010447,2]
[348167793,1736362242736,-592.68,0.00010447,2]
[348167796,1736362242746,-500.0,0.00010447,2]
[348167799,1736362242756,-624.94,0.00010447,2]
[348167802,1736362242765,-500.0,0.00010447,2]
[348167804,1736362242775,-500.0,0.00010447,2]
[348167807,1736362242784,-665.75,0.00010447,2]
[348167810,1736362242793,-659.93,0.00010447,2]
[348167812,1736362242803,-500.0,0.00010447,2]
[348167814,1736362242812,-500.0,0.00010447,2]
[348167816,1736362242821,-500.0,0.00010447,2]
[348167818,1736362242831,-500.0,0.00010447,2]
[348167820,1736362242840,-500.0,0.00010447,2]
[348167823,1736362242850,-500.0,0.00010447,2]
[348167826,1736362242859,-500.0,0.00010447,2]
[348167828,1736362242868,-500.0,0.00010447,2]
[348167830,1736362242877,-500.0,0.00010447,2]
[348167832,1736362242887,-500.0,0.00010447,2]
[348167834,1736362242896,-500.0,0.00010447,2]
[348167836,1736362242906,-500.0,0.00010447,2]
[348167838,1736362242915,-500.0,0.00010447,2]
[348167840,1736362242928,-500.0,0.00010447,2]
[348167842,1736362242937,-500.0,0.00010447,2]
[348167844,1736362242947,-500.0,0.00010447,2]
[348167846,1736362242959,-500.0,0.00010447,2]
[348167848,1736362242968,-500.0,0.00010447,2]
[348167850,1736362242978,-500.0,0.00010447,2]
[348167852,1736362242988,-500.0,0.00010447,2]
[348167853,1736362242997,-500.0,0.00010447,2]
[348167856,1736362243007,-500.0,0.00010447,2]
[348167857,1736362243016,-500.0,0.00010447,2]
[348167860,1736362243028,-500.0,0.00010447,2]
[348167862,1736362243038,-500.0,0.00010447,2]
[348167864,1736362243047,-500.0,0.00010447,2]
[348167865,1736362243056,-500.0,0.00010447,2]
[348167867,1736362243066,-500.0,0.00010447,2]
[348167869,1736362243076,-500.0,0.00010447,2]
[348167871,1736362243084,-500.0,0.00010447,2]
[348167873,1736362243095,-500.0,0.00010447,2]
[348167875,1736362243105,-500.0,0.00010447,2]
[348167877,1736362243115,-500.0,0.00010447,2]
[348167879,1736362243126,-500.0,0.00010447,2]
[348167882,1736362243137,-1462.34,0.00010447,2]
[348167884,1736362243146,-500.0,0.00010447,2]
[348167885,1736362243156,-757.86,0.00010447,2]
[348167888,1736362243166,-500.0,0.00010447,2]
[348167890,1736362243176,-701.16,0.00010447,2]
[348167892,1736362243187,-2580.23,0.00010447,2]
[348167894,1736362243197,-500.0,0.00010447,2]
[348167896,1736362243207,-628.18,0.00010447,2]
[348167898,1736362243216,-500.0,0.00010447,2]
[348167900,1736362243225,-500.0,0.00010447,2]
[348167902,1736362243235,-500.0,0.00010447,2]
[348167904,1736362243244,-500.0,0.00010447,2]
[348167906,1736362243254,-175684.0,0.000105,2]
[348167908,1736362243263,-420.0,0.00010519,2]
[348167910,1736362243274,-1215.3,0.0001052,2]
[348167912,1736362243284,-993.2,0.0001052,2]
[348167914,1736362243296,-195.13945326,0.00010581,2]
[348167916,1736362243306,-502.99186117,0.00010581,2]
[348167918,1736362243315,-500.0,0.00010581,2]
[348167920,1736362243324,-500.62021904,0.00010581,2]
[348167922,1736362243334,-502.12075007,0.00010581,2]
[348167924,1736362243344,-500.96804778,0.00010581,2]
[348167926,1736362243353,-503.13166563,0.00010581,2]
[348167928,1736362243365,-501.99067918,0.00010581,2]
[348167930,1736362243375,-500.69368204,0.00010581,2]
[348167932,1736362243384,-502.85718823,0.00010581,2]
[348167934,1736362243394,-501.66983493,0.00010581,2]
[348167936,1736362243403,-501.1098614,0.00010581,2]
[348167938,1736362243413,-397.99543455,0.00010581,2]
[348167940,1736362243422,-502.51876585,0.00010581,2]
[348167942,1736362243431,-501.97774188,0.00010581,2]
[348167944,1736362243440,-503.37953518,0.00010581,2]
[348167946,1736362243449,-502.2692072,0.00010581,2]
[348167948,1736362243459,-502.4382404,0.00010581,2]
[348167950,1736362243468,-500.0,0.00010581,2]
[348167952,1736362243478,-500.0,0.00010581,2]
[348167954,1736362243487,-500.0,0.00010581,2]
[348167956,1736362243498,-500.0,0.00010582,2]
[348167959,1736362243507,-500.0,0.00010582,2]
[348167961,1736362243516,-1871.82,0.00010582,2]
[348167963,1736362243526,-500.0,0.00010582,2]
[348167965,1736362243535,-651.25,0.00010582,2]
[348167967,1736362243545,-515.76,0.00010582,2]
[348167969,1736362243554,-507.55,0.00010582,2]
[348167971,1736362243564,-500.0,0.00010582,2]
[348167973,1736362243574,-500.0,0.00010582,2]
[348167975,1736362243583,-500.0,0.00010582,2]
[348167977,1736362243593,-166.39605659,0.0001062,2]
[348167979,1736362243602,-500.49217523,0.00010683,2]
[348167981,1736362243611,-151.0441741,0.00010687,2]
[348167983,1736362243620,-151.81438936,0.00010687,2]
[348167985,1736362243630,-151.80741876,0.00010687,2]
[348167987,1736362243640,-500.0,0.00010692,2]
[348167989,1736362243650,-500.0,0.00010692,2]
[348167991,1736362243660,-500.0,0.00010692,2]
[348167993,1736362243669,-2544.2,0.00010692,2]
[348167995,1736362243678,-1042.29,0.00010692,2]
[348167997,1736362243689,-629.99,0.00010692,2]
[348167999,1736362243697,-500.0,0.00010692,2]
[348168001,1736362243707,-500.0,0.00010692,2]
[348168003,1736362243716,-926.3,0.00010692,2]
[348168005,1736362243725,-1464.56,0.00010692,2]
[348168007,1736362243736,-1397.23,0.00010692,2]
[348168009,1736362243745,-2215.57,0.00010692,2]
[348168011,1736362243754,-1134.57,0.00010692,2]
[348168013,1736362243763,-3254.43,0.00010692,2]
[348168015,1736362243774,-3864.53,0.00010692,2]
[348168017,1736362243783,-539.16,0.0001072,2]
[348168019,1736362243793,-534.77,0.0001072,2]
[348168021,1736362243804,-311.25607775,0.0001072,2]
[348168023,1736362243813,-500.0,0.0001072,2]
[348168025,1736362243822,-500.0,0.0001072,2]
[348168027,1736362243831,-500.0,0.0001072,2]
[348168029,1736362243841,-577.51,0.0001072,2]
[348168031,1736362243850,-500.0,0.0001072,2]
[348168033,1736362243859,-644.54,0.0001072,2]
[348168035,1736362243869,-587.5,0.0001072,2]
[348168037,1736362243878,-500.0,0.0001072,2]
[348168039,1736362243887,-500.0,0.0001072,2]
[348168041,1736362243896,-500.0,0.0001072,2]
[348168043,1736362243905,-500.0,0.0001072,2]
[348168045,1736362243914,-500.0,0.0001072,2]
[348168047,1736362243927,-500.0,0.0001072,2]
[348168049,1736362243936,-500.0,0.0001072,2]
[348168050,1736362243946,-658.68,0.0001072,2]
[348168051,1736362243955,-500.0,0.0001072,2]
[348168063,1736362244125,-500.0,0.0001072,2]
[348168065,1736362244135,-500.0,0.0001072,2]
[348168067,1736362244145,-500.0,0.0001072,2]
[348168069,1736362244156,-204.77,0.0001072,2]
[348168071,1736362244165,-500.0,0.0001072,2]
[348168073,1736362244175,-500.0,0.0001072,2]
[348168075,1736362244184,-500.0,0.0001072,2]
[348168077,1736362244195,-500.0,0.0001072,2]
[348168079,1736362244204,-801.18,0.0001072,2]
[348168081,1736362244214,-500.0,0.0001072,2]
[348168083,1736362244224,-701.9,0.0001072,2]
[348168085,1736362244233,-184.23272692,0.0001072,2]
[348168087,1736362244243,-500.0,0.0001072,2]
[348168089,1736362244252,-500.0,0.0001072,2]
[348168091,1736362244262,-609.7,0.0001072,2]
[348168094,1736362244273,-500.0,0.0001072,2]
[348168095,1736362244283,-500.0,0.0001072,2]
[348168097,1736362244292,-693.7,0.0001072,2]
[348168100,1736362244302,-500.0,0.0001072,2]
[348168102,1736362244312,-500.0,0.0001072,2]
[348168104,1736362244321,-500.0,0.0001072,2]
[348168105,1736362244331,-718.53,0.0001072,2]
[348168108,1736362244340,-500.0,0.0001072,2]
[348168110,1736362244350,-500.0,0.0001072,2]
[348168111,1736362244363,-500.0,0.0001072,2]
[348168113,1736362244373,-784.05,0.0001072,2]
[348168115,1736362244382,-557.73,0.0001072,2]
[348168117,1736362244392,-500.0,0.0001072,2]
[348168119,1736362244402,-500.0,0.0001072,2]
[348168121,1736362244411,-500.0,0.0001072,2]
[348168123,1736362244421,-500.0,0.0001072,2]
[348168125,1736362244430,-500.0,0.0001072,2]
[348168127,1736362244440,-560.21,0.0001072,2]
[348168129,1736362244449,-500.0,0.0001072,2]
[348168131,1736362244460,-500.0,0.0001072,2]
[348168133,1736362244469,-500.0,0.0001072,2]
[348168135,1736362244479,-500.0,0.0001072,2]
[348168137,1736362244489,-500.0,0.0001072,2]
[348168139,1736362244499,-500.0,0.0001072,2]
[348168142,1736362244509,-500.0,0.0001072,2]
[348168143,1736362244519,-500.0,0.0001072,2]
[348168146,1736362244530,-500.0,0.0001072,2]
[348168148,1736362244539,-642.81,0.0001072,2]
[348168149,1736362244549,-500.0,0.0001072,2]
[348168152,1736362244559,-500.0,0.0001072,2]
[348168153,1736362244569,-956.3,0.0001072,2]
[348168155,1736362244578,-500.0,0.0001072,2]
[348168157,1736362244587,-500.0,0.0001072,2]
[348168159,1736362244597,-500.0,0.0001072,2]
[348168161,1736362244606,-500.0,0.0001072,2]
[348168163,1736362244615,-500.0,0.0001072,2]
[348168165,1736362244625,-500.0,0.0001072,2]
[348168166,1736362244635,-500.0,0.0001072,2]
[348168168,1736362244644,-238.21568217,0.0001072,2]
[348168170,1736362244653,-603.91,0.0001072,2]
[348168172,1736362244663,-500.0,0.0001072,2]
[348168174,1736362244673,-183.33553344,0.0001072,2]
[348168176,1736362244683,-500.0,0.0001072,2]
[348168178,1736362244692,-500.0,0.0001072,2]
[348168180,1736362244701,-1933.32,0.0001072,2]
[348168182,1736362244711,-500.0,0.0001072,2]
[348168184,1736362244720,-500.0,0.0001072,2]
[348168186,1736362244730,-500.0,0.0001072,2]
[348168187,1736362244740,-657.09,0.0001072,2]
[348168188,1736362244749,-576.46,0.0001072,2]
[348168189,1736362244759,-666.44,0.0001072,2]
[348168191,1736362244768,-554.61,0.0001072,2]
[348168193,1736362244779,-500.0,0.0001072,2]
[348168195,1736362244788,-500.0,0.0001072,2]
[348168197,1736362244798,-2827.12,0.0001072,2]
[348168199,1736362244807,-2378.14,0.0001072,2]
[348168201,1736362244816,-1628.91,0.0001072,2]
[348168203,1736362244826,-590.58,0.0001072,2]
[348168205,1736362244835,-500.0,0.0001072,2]
[348168207,1736362244844,-2603.36,0.0001072,2]
[348168209,1736362244854,-500.0,0.0001072,2]
[348168211,1736362244863,-500.0,0.0001072,2]
[348168213,1736362244876,-1087.38,0.0001072,2]
[348168215,1736362244885,-500.0,0.0001072,2]
[348168216,1736362244895,-500.0,0.0001072,2]
[348168218,1736362244905,-500.0,0.0001072,2]
[348168220,1736362244916,-3082.77,0.0001072,2]
[348168221,1736362244928,-386.13465827,0.0001072,2]
[348168222,1736362244938,-573.65,0.0001072,2]
[348168223,1736362244947,-787.24,0.0001072,2]
[348168224,1736362244957,-504.42082281,0.0001072,2]